fUST/lending_fUST_20241114
["ID","MTS","AMOUNT","RATE_DAILY","PERIOD"]
[342218457,1731595839043,-17204.68,0.00016438,2]
[342218458,1731595839053,-500.0,0.00016438,2]
[342218459,1731595839063,-500.0,0.00016438,2]
[342218460,1731595839075,-500.0,0.00016438,2]
[342218461,1731595839085,-500.0,0.00016438,2]
[342218462,1731595839094,-500.0,0.00016438,2]
[342218463,1731595839104,-151.0,0.00016438,2]
[342218464,1731595839114,-151.0,0.00016438,2]
[342218465,1731595839123,-655.25,0.00016438,2]
[342218466,1731595839133,-151.0,0.00016438,2]
[342218467,1731595839143,-151.0,0.00016438,2]
[342218468,1731595839152,-151.0,0.00016438,2]
[342218469,1731595839162,-151.0,0.00016438,2]
[342218470,1731595839171,-151.0,0.00016438,2]
[342218471,1731595839180,-151.0,0.00016438,2]
[342218472,1731595839189,-151.0,0.00016438,2]
[342218473,1731595839198,-500.0,0.00016438,2]
[342218474,1731595839208,-151.0,0.00016438,2]
[342218475,1731595839217,-500.0,0.00016438,2]
[342218476,1731595839226,-261.51287549,0.00016438,2]
[342218477,1731595839235,-500.0,0.00016438,2]
[342218478,1731595839244,-151.0,0.00016438,2]
[342218479,1731595839253,-151.0,0.00016438,2]
[342218480,1731595839263,-151.0,0.00016438,2]
[342218481,1731595839272,-151.0,0.00016438,2]
[342218482,1731595839281,-500.0,0.00016438,2]
[342218483,1731595839290,-151.0,0.00016438,2]
[342218484,1731595839299,-151.0,0.00016438,2]
[342218485,1731595839308,-151.0,0.00016438,2]
[342218486,1731595839318,-500.0,0.00016438,2]
[342218487,1731595839331,-151.0,0.00016438,2]
[342218488,1731595839339,-151.0,0.00016438,2]
[342218489,1731595839349,-200.0,0.00016438,2]
[342218490,1731595839358,-151.0,0.00016438,2]
[342218491,1731595839368,-184.585392,0.00016438,2]
[342218492,1731595839379,-903.09,0.00016438,2]
[342218493,1731595839389,-1587.39,0.00016438,2]
[342218494,1731595839398,-1574.22,0.00016438,2]
[342218495,1731595839408,-500.0,0.00016438,2]
[342218496,1731595839418,-343.45361083,0.00016438,2]
[342218497,1731595839428,-500.0,0.00016438,2]
[342218498,1731595839437,-1268.94,0.00016438,2]
[342218499,1731595839447,-500.0,0.00016438,2]
[342218500,1731595839457,-576.97,0.00016438,2]
[342218501,1731595839467,-500.0,0.00016438,2]
[342218502,1731595839477,-500.0,0.00016438,2]
[342218503,1731595839486,-500.0,0.00016438,2]
[342218504,1731595839496,-500.0,0.00016438,2]
[342218505,1731595839506,-501.74764514,0.00016438,2]
[342218506,1731595839516,-500.0,0.00016438,2]
[342218507,1731595839526,-500.0,0.00016438,2]
[342218508,1731595839536,-500.0,0.00016438,2]
[342218509,1731595839545,-500.0,0.00016438,2]
[342218510,1731595839555,-503.85,0.00016438,2]
[342218511,1731595839565,-500.0,0.00016438,2]
[342218512,1731595839578,-512.47956342,0.00016438,2]
[342218514,1731595839587,-737.26,0.00016438,2]
[342218515,1731595839597,-780.54,0.00016438,2]
[342218517,1731595839607,-827.9,0.00016438,2]
[342218519,1731595839618,-500.0,0.00016438,2]
[342218520,1731595839627,-182.66,0.00016438,2]
[342218521,1731595839638,-520.63126266,0.00016438,2]
[342218522,1731595839648,-1982.54,0.00016438,2]
[342218523,1731595839658,-500.0,0.00016438,2]
[342218525,1731595839669,-500.0,0.00016438,2]
[342218526,1731595839679,-500.0,0.00016438,2]
[342218528,1731595839689,-590.7,0.00016438,2]
[342218529,1731595839699,-2714.29,0.00016438,2]
[342218530,1731595839709,-510.29,0.00016438,2]
[342218531,1731595839719,-500.0,0.00016438,2]
[342218532,1731595839729,-1120.27,0.00016438,2]
[342218534,1731595839740,-1199.09,0.00016438,2]
[342218535,1731595839749,-500.0,0.00016438,2]
[342218536,1731595839759,-500.0,0.00016438,2]
[342218537,1731595839770,-1077.2,0.00016438,2]
[342218538,1731595839780,-763.2,0.00016438,2]
[342218539,1731595839790,-691.77,0.00016438,2]
[342218540,1731595839799,-524.07574945,0.00016438,2]
[342218542,1731595839810,-500.22099388,0.00016438,2]
[342218544,1731595839820,-500.0,0.00016438,2]
[342218545,1731595839835,-277.40050083,0.00016438,2]
[342218546,1731595839845,-500.0,0.00016438,2]
[342218547,1731595839855,-500.0,0.00016438,2]
[342218548,1731595839864,-835.05,0.00016438,2]
[342218549,1731595839874,-529.13,0.00016438,2]
[342218550,1731595839885,-500.0,0.00016438,2]
[342218551,1731595839895,-677.57,0.00016438,2]
[342218552,1731595839905,-2021.33,0.00016438,2]
[342218553,1731595839915,-500.0,0.00016438,2]
[342218554,1731595839925,-500.0,0.00016438,2]
[342218555,1731595839934,-642.83152483,0.00016438,2]
[342218556,1731595839944,-500.0,0.00016438,2]
[342218558,1731595839954,-500.0,0.00016438,2]
[342218560,1731595839964,-500.0,0.00016438,2]
[342218561,1731595839973,-500.0,0.00016438,2]
[342218562,1731595839983,-500.0,0.00016438,2]
[342218564,1731595839993,-604.58,0.00016438,2]
[342218566,1731595840002,-500.0,0.00016438,2]
[342218567,1731595840015,-4593.36,0.00016438,2]
[342218568,1731595840025,-500.0,0.00016438,2]
[342218570,1731595840035,-500.0,0.00016438,2]
[342218572,1731595840045,-500.0,0.00016438,2]
[342218573,1731595840055,-500.0,0.00016438,2]
[342218574,1731595840065,-502.65989463,0.00016438,2]
[342218575,1731595840077,-1328.77,0.00016438,2]
[342218576,1731595840088,-500.0,0.00016438,2]
[342218577,1731595840098,-639.18,0.00016438,2]
[342218578,1731595840107,-500.0,0.00016438,2]
[342218579,1731595840117,-832.04,0.00016438,2]
[342218580,1731595840127,-500.0,0.00016438,2]
[342218581,1731595840136,-867.76,0.00016438,2]
[342218582,1731595840146,-500.0,0.00016438,2]
[342218583,1731595840155,-500.0,0.00016438,2]
[342218584,1731595840165,-7208.99,0.00016438,2]
[342218585,1731595840174,-597.54,0.00016438,2]
[342218586,1731595840184,-629.54,0.00016438,2]
[342218587,1731595840193,-616.9,0.00016438,2]
[342218588,1731595840203,-500.0,0.00016438,2]
[342218589,1731595840213,-517.74913293,0.00016438,2]
[342218590,1731595840222,-500.0,0.00016438,2]
[342218591,1731595840231,-500.0,0.00016438,2]
[342218592,1731595840241,-4383.45,0.00016438,2]
[342218593,1731595840249,-575.76,0.00016438,2]
[342218594,1731595840259,-642.4,0.00016438,2]
[342218595,1731595840268,-500.0,0.00016438,2]
[342218596,1731595840278,-500.0,0.00016438,2]
[342218597,1731595840287,-816.47,0.00016438,2]
[342218598,1731595840297,-151.0,0.00016438,2]
[342218599,1731595840306,-151.0,0.00016438,2]
[342218600,1731595840316,-151.0,0.00016438,2]
[342218601,1731595840329,-182.566798,0.00016438,2]
[342218602,1731595840339,-151.0,0.00016438,2]
[342218603,1731595840348,-151.0,0.00016438,2]
[342218604,1731595840357,-151.0,0.00016438,2]
[342218605,1731595840497,-151.0,0.00016438,2]
[342218606,1731595840508,-151.0,0.00016438,2]
[342218607,1731595840518,-151.0,0.00016438,2]
[342218608,1731595840528,-151.0,0.00016438,2]
[342218609,1731595840538,-151.0,0.00016438,2]
[342218610,1731595840548,-151.0,0.00016438,2]
[342218611,1731595840558,-151.0,0.00016438,2]
[342218612,1731595840568,-500.0,0.00016438,2]
[342218613,1731595840585,-151.0,0.00016438,2]
[342218614,1731595840598,-500.0,0.00016438,2]
[342218615,1731595840608,-151.0,0.00016438,2]
[342218616,1731595840618,-151.0,0.00016438,2]
[342218617,1731595840629,-716.09,0.00016438,2]
[342218618,1731595840639,-151.0,0.00016438,2]
[342218619,1731595840648,-151.0,0.00016438,2]
[342218620,1731595840658,-500.0,0.00016438,2]
[342218621,1731595840668,-151.0,0.00016438,2]
[342218622,1731595840679,-1455.19,0.00016438,2]
[342218623,1731595840689,-282.934634,0.00016438,2]
[342218624,1731595840699,-500.0,0.00016438,2]
[342218625,1731595840709,-500.0,0.00016438,2]
[342218626,1731595840719,-501.59457179,0.00016473,2]
[342218627,1731595840730,-606.09343545,0.00016473,2]
[342218628,1731595840741,-500.0,0.00016473,2]
[342218629,1731595840751,-500.0,0.00016473,2]
[342218630,1731595840760,-500.0,0.00016473,2]
[342218631,1731595840770,-500.0,0.00016473,2]
[342218632,1731595840780,-500.0,0.00016473,2]
[342218633,1731595840790,-500.0,0.00016473,2]
[342218634,1731595840800,-162.69909297,0.00016473,2]
[342218635,1731595840810,-500.0,0.00016473,2]
[342218636,1731595840820,-422.54232888,0.00016473,2]
[342218637,1731595840829,-576.68296605,0.00016473,2]
[342218638,1731595840839,-500.0,0.00016473,2]
[342218639,1731595840849,-500.0,0.00016473,2]
[342218640,1731595840859,-502.74094738,0.00016473,2]
[342218641,1731595840868,-500.53515116,0.00016473,2]
[342218642,1731595840879,-500.0,0.00016473,2]
[342218643,1731595840889,-500.79655364,0.00016473,2]
[342218644,1731595840900,-467.94986428,0.00016473,2]
[342218645,1731595840911,-500.70622727,0.00016473,2]
[342218646,1731595840920,-500.0,0.00016473,2]
[342218647,1731595840930,-500.95623618,0.00016473,2]
[342218648,1731595840940,-634.36871329,0.00016473,2]
[342218649,1731595840951,-500.0,0.00016473,2]
[342218650,1731595840961,-531.92846396,0.00016473,2]
[342218651,1731595840971,-500.0,0.00016473,2]
[342218652,1731595840981,-500.0,0.00016473,2]
[342218653,1731595840991,-500.0,0.00016473,2]
[342218654,1731595841000,-780.70402437,0.000165,2]
[342218655,1731595841014,-500.0,0.000165,2]
[342218656,1731595841024,-500.0,0.000165,2]
[342218657,1731595841034,-420.0,0.00016504,2]
[342218658,1731595841044,-1743.50334167,0.00016544,2]
[342218659,1731595841055,-151.0,0.00016544,2]
[342218660,1731595841065,-500.0,0.00016712,2]
[342218661,1731595841080,-500.0,0.00016712,2]
[342218662,1731595841094,-500.0,0.00016712,2]
[342218663,1731595841105,-788.3,0.00016712,2]
[342218664,1731595841114,-500.0,0.00016712,2]
[342218665,1731595841124,-500.0,0.00016712,2]
[342218666,1731595841135,-500.0,0.00016712,2]
[342218667,1731595841145,-500.0,0.00016712,2]
[342218668,1731595841155,-500.0,0.00016712,2]
[342218669,1731595841164,-500.0,0.00016712,2]
[342218670,1731595841174,-809.23,0.00016712,2]
[342218671,1731595841184,-151.0,0.00016712,2]
[342218672,1731595841195,-500.0,0.00016712,2]
[342218673,1731595841205,-500.0,0.00016712,2]
[342218674,1731595841215,-525.76,0.00016712,2]
[342218675,1731595841225,-500.0,0.00016712,2]
[342218676,1731595841235,-581.69,0.00016712,2]
[342218677,1731595841245,-500.0,0.00016712,2]
[342218678,1731595841254,-573.91190013,0.00016712,2]
[342218679,1731595841264,-500.0,0.00016712,2]
[342218681,1731595841274,-500.0,0.00016712,2]
[342218683,1731595841284,-500.0,0.00016712,2]
[342218684,1731595841294,-500.0,0.00016712,2]
[342218686,1731595841304,-500.0,0.00016712,2]
[342218687,1731595841314,-523.3,0.00016712,2]
[342218688,1731595841324,-565.73,0.00016712,2]
[342218689,1731595841340,-500.0,0.00016712,2]
[342218690,1731595841349,-634.52803221,0.00016712,2]
[342218691,1731595841359,-500.0,0.00016712,2]
[342218692,1731595841370,-488.93016485,0.00016712,2]
[342218693,1731595841380,-1000.0,0.00016712,2]
[342218694,1731595841390,-500.0,0.00016712,2]
[342218695,1731595841400,-500.0,0.00016712,2]
[342218696,1731595841409,-604.69736425,0.00016712,2]
[342218697,1731595841419,-500.0,0.00016712,2]
[342218698,1731595841429,-500.0,0.00016712,2]
[342218699,1731595841439,-500.0,0.00016712,2]
[342218700,1731595841449,-839.17,0.00016712,2]
[342218701,1731595841459,-968.41,0.00016712,2]
[342218702,1731595841468,-614.57,0.00016712,2]
[342218703,1731595841478,-500.0,0.00016712,2]
[342218704,1731595841487,-541.69,0.00016712,2]
[342218705,1731595841497,-500.0,0.00016712,2]
[342218706,1731595841507,-500.0,0.00016712,2]
[342218707,1731595841516,-500.0,0.00016712,2]
[342218708,1731595841526,-500.0,0.00016712,2]
[342218709,1731595841536,-500.0,0.00016712,2]
[342218710,1731595841546,-500.0,0.00016712,2]
[342218711,1731595841555,-628.28,0.00016712,2]
[342218712,1731595841564,-500.0,0.00016712,2]
[342218713,1731595841573,-500.0,0.00016712,2]
[342218714,1731595841590,-622.52,0.00016712,2]
[342218715,1731595841600,-500.0,0.00016712,2]
[342218716,1731595841610,-536.013328,0.00016712,2]
[342218717,1731595841619,-500.0,0.00016712,2]
[342218718,1731595841628,-500.0,0.00016712,2]
[342218719,1731595841637,-646.04,0.00016712,2]
[342218720,1731595841647,-681.07,0.00016712,2]
[342218721,1731595841656,-500.0,0.00016712,2]
[342218722,1731595841665,-500.0,0.00016712,2]
[342218723,1731595841675,-641.36,0.00016712,2]
[342218724,1731595841684,-500.0,0.00016712,2]
[342218725,1731595841694,-489.38011238,0.00016712,2]
[342218726,1731595841703,-500.0,0.00016712,2]
[342218727,1731595841712,-691.43,0.00016712,2]
[342218728,1731595841722,-647.8,0.00016712,2]
[342218729,1731595841731,-755.66,0.00016712,2]
[342218730,1731595841741,-501.49,0.00016712,2]
[342218731,1731595841751,-500.0,0.00016712,2]
[342218732,1731595841760,-905.77,0.00016712,2]
[342218733,1731595841770,-500.0,0.00016712,2]
[342218734,1731595841780,-500.0,0.00016712,2]
[342218735,1731595841790,-500.0,0.00016712,2]
[342218736,1731595841800,-1145.47,0.00016712,2]
[342218737,1731595841809,-500.0,0.00016712,2]
[342218738,1731595841818,-500.0,0.00016712,2]
[342218739,1731595841832,-500.0,0.00016712,2]
[342218740,1731595841843,-395.8695683,0.00016712,2]
[342218741,1731595841852,-500.0,0.00016712,2]
[342218742,1731595841862,-500.0,0.00016712,2]
[342218743,1731595841871,-843.03,0.00016712,2]
[342218744,1731595841881,-500.0,0.00016712,2]
[342218745,1731595841890,-541.75,0.00016712,2]
[342218746,1731595841900,-500.0,0.00016712,2]
[342218747,1731595841910,-500.0,0.00016712,2]
[342218748,1731595841919,-500.0,0.00016712,2]
[342218749,1731595841928,-594.26,0.00016712,2]
[342218750,1731595841938,-500.0,0.00016712,2]
[342218751,1731595841947,-500.0,0.00016712,2]
[342218752,1731595841956,-533.4,0.00016712,2]
[342218753,1731595841966,-500.0,0.00016712,2]
[342218754,1731595841976,-582.28,0.00016712,2]
[342218755,1731595841986,-500.0,0.00016712,2]
[342218756,1731595841995,-500.0,0.00016712,2]
[342218757,1731595842005,-245.09,0.00016712,2]
[342218758,1731595842015,-500.0,0.00016712,2]
[342218759,1731595842026,-500.0,0.00016712,2]
[342218760,1731595842036,-716.7,0.00016712,2]
[342218761,1731595842045,-500.0,0.00016712,2]
[342218762,1731595842054,-500.0,0.00016712,2]
[342218763,1731595842063,-500.0,0.00016712,2]
[342218764,1731595842077,-2015.3,0.00016712,2]
[342218765,1731595842087,-500.0,0.00016712,2]
[342218766,1731595842096,-753.79,0.00016712,2]
[342218767,1731595842108,-746.97,0.00016712,2]
[342218768,1731595842117,-500.0,0.00016712,2]
[342218769,1731595842127,-500.0,0.00016712,2]
[342218770,1731595842138,-638.18,0.00016712,2]
[342218771,1731595842148,-504.82262308,0.00016712,2]
[342218772,1731595842157,-500.0,0.00016712,2]
[342218773,1731595842167,-708.71,0.00016712,2]
[342218774,1731595842176,-895.0,0.00016712,2]
[342218775,1731595842186,-500.0,0.00016712,2]
[342218776,1731595842196,-500.0,0.00016712,2]
[342218777,1731595842205,-1138.79,0.00016712,2]
[342218778,1731595842215,-500.0,0.00016712,2]
[342218779,1731595842224,-500.0,0.00016712,2]
[342218780,1731595842233,-500.0,0.00016712,2]
[342218781,1731595842243,-1401.03,0.00016712,2]
[342218782,1731595842253,-754.37,0.00016712,2]
[342218783,1731595842262,-500.0,0.00016712,2]
[342218784,1731595842271,-1257.03,0.00016712,2]
[342218785,1731595842280,-500.0,0.00016712,2]
[342218786,1731595842290,-500.0,0.00016712,2]
[342218787,1731595842299,-500.0,0.00016712,2]
[342218788,1731595842309,-500.0,0.00016712,2]
[342218789,1731595842319,-500.0,0.00016712,2]
[342218790,1731595842332,-500.0,0.00016712,2]
[342218791,1731595842341,-500.0,0.00016712,2]
[342218792,1731595842350,-500.0,0.00016712,2]
[342218793,1731595842359,-500.0,0.00016712,2]
[342218794,1731595842369,-500.0,0.00016712,2]
[342218795,1731595842378,-500.0,0.00016712,2]
[342218796,1731595842388,-13677.72,0.00016712,2]
[342218797,1731595842397,-500.0,0.00016712,2]
[342218798,1731595842406,-500.0,0.00016712,2]
[342218799,1731595842415,-500.0,0.00016712,2]
[342218800,1731595842424,-500.0,0.00016712,2]
[342218801,1731595842433,-500.0,0.00016712,2]
[342218802,1731595842442,-500.0,0.00016712,2]
[342218803,1731595842451,-500.0,0.00016712,2]
[342218804,1731595842461,-658.16,0.00016712,2]
[342218806,1731595842470,-1743.89,0.00016712,2]
[342218808,1731595842480,-675.85,0.00016712,2]
[342218810,1731595842489,-500.0,0.00016712,2]
[342218811,1731595842498,-500.0,0.00016712,2]
[342218813,1731595842508,-500.0,0.00016712,2]
[342218815,1731595842517,-500.0,0.00016712,2]
[342218816,1731595842526,-500.0,0.00016712,2]
[342218817,1731595842536,-1047.87,0.00016712,2]
[342218819,1731595842546,-500.0,0.00016712,2]
[342218821,1731595842555,-17204.68,0.00016712,2]
[342218823,1731595842565,-500.0,0.00016712,2]
[342218825,1731595842574,-402.30185054,0.00016712,2]
[342218826,1731595842587,-500.0,0.00016712,2]
[342218827,1731595842596,-655.25,0.00016712,2]
[342218828,1731595842605,-500.0,0.00016712,2]
[342218829,1731595842615,-500.0,0.00016712,2]
[342218830,1731595842624,-500.0,0.00016712,2]
[342218831,1731595842634,-200.0,0.00016712,2]
[342218832,1731595842644,-903.09,0.00016712,2]
[342218833,1731595842653,-1587.39,0.00016712,2]
[342218834,1731595842663,-1574.22,0.00016712,2]
[342218835,1731595842672,-500.0,0.00016712,2]
[342218836,1731595842681,-1268.94,0.00016712,2]
[342218838,1731595842691,-500.0,0.00016712,2]
[342218840,1731595842700,-576.97,0.00016712,2]
[342218842,1731595842710,-500.0,0.00016712,2]
[342218844,1731595842720,-500.0,0.00016712,2]
[342218846,1731595842730,-247.02658267,0.00016712,2]
[342218848,1731595842740,-500.0,0.00016712,2]
[342218851,1731595842751,-500.0,0.00016712,2]
[342218854,1731595842760,-500.0,0.00016712,2]
[342218857,1731595842770,-500.0,0.00016712,2]
[342218860,1731595842780,-503.85,0.00016712,2]
[342218863,1731595842790,-500.0,0.00016712,2]
[342218866,1731595842799,-737.26,0.00016712,2]
[342218870,1731595842809,-780.54,0.00016712,2]
[342218874,1731595842818,-827.9,0.00016712,2]
[342218877,1731595842831,-1982.54,0.00016712,2]
[342218879,1731595842841,-500.0,0.00016712,2]
[342218881,1731595842851,-501.30917434,0.00016712,2]
[342218882,1731595842860,-500.0,0.00016712,2]
[342218883,1731595842870,-590.7,0.00016712,2]
[342218885,1731595842879,-2714.29,0.00016712,2]
[342218887,1731595842890,-500.0,0.00016712,2]
[342218889,1731595842900,-1120.27,0.00016712,2]
[342218892,1731595842909,-1199.09,0.00016712,2]
[342218894,1731595842919,-510.29,0.00016712,2]
[342218897,1731595842928,-500.0,0.00016712,2]
[342218901,1731595842937,-500.0,0.00016712,2]
[342218902,1731595842947,-1077.2,0.00016712,2]
[342218910,1731595842990,-763.2,0.00016712,2]
[342218913,1731595842999,-691.77,0.00016712,2]
[342218915,1731595843010,-500.0,0.00016712,2]
[342218917,1731595843021,-500.0,0.00016712,2]
[342218919,1731595843031,-500.0,0.00016712,2]
[342218920,1731595843040,-835.05,0.00016712,2]
[342218922,1731595843051,-529.13,0.00016712,2]
[342218924,1731595843060,-677.57,0.00016712,2]
[342218926,1731595843069,-2021.33,0.00016712,2]
[342218928,1731595843084,-500.0,0.00016712,2]
[342218930,1731595843095,-500.0,0.00016712,2]
[342218931,1731595843105,-500.0,0.00016712,2]
[342218933,1731595843114,-500.0,0.00016712,2]
[342218934,1731595843123,-500.0,0.00016712,2]
[342218936,1731595843133,-500.0,0.00016712,2]
[342218938,1731595843142,-604.58,0.00016712,2]
[342218939,1731595843151,-500.0,0.00016712,2]
[342218941,1731595843160,-4593.36,0.00016712,2]
[342218942,1731595843169,-500.0,0.00016712,2]
[342218943,1731595843180,-500.0,0.00016712,2]
[342218945,1731595843189,-500.0,0.00016712,2]
[342218946,1731595843199,-1328.77,0.00016712,2]
[342218947,1731595843209,-639.18,0.00016712,2]
[342218948,1731595843218,-500.0,0.00016712,2]
[342218950,1731595843227,-832.04,0.00016712,2]
[342218951,1731595843236,-500.0,0.00016712,2]
[342218952,1731595843245,-867.76,0.00016712,2]
[342218953,1731595843255,-500.0,0.00016712,2]
[342218954,1731595843264,-500.0,0.00016712,2]
[342218955,1731595843273,-7208.99,0.00016712,2]
[342218956,1731595843283,-597.54,0.00016712,2]
[342218957,1731595843291,-629.54,0.00016712,2]
[342218958,1731595843301,-616.9,0.00016712,2]
[342218959,1731595843310,-500.0,0.00016712,2]
[342218960,1731595843319,-500.0,0.00016712,2]
[342218962,1731595843334,-575.76,0.00016712,2]
[342218963,1731595843343,-4383.45,0.00016712,2]
[342218966,1731595843352,-642.4,0.00016712,2]
[342218967,1731595843362,-500.0,0.00016712,2]
[342218970,1731595843371,-500.0,0.00016712,2]
[342218971,1731595843380,-816.47,0.00016712,2]
[342218974,1731595843390,-500.0,0.00016712,2]
[342218975,1731595843399,-500.0,0.00016712,2]
[342218977,1731595843408,-716.09,0.00016712,2]
[342218979,1731595843417,-500.0,0.00016712,2]
[342218981,1731595843426,-1455.19,0.00016712,2]
[342218983,1731595843435,-588.5345707,0.00016712,2]
[342218985,1731595843444,-500.0,0.00016712,2]
[342218987,1731595843453,-1743.50334167,0.00016749,2]
[342218989,1731595843463,-2202.40002872,0.00016886,2]
[342218991,1731595843472,-1743.50334167,0.00016955,2]
[342218994,1731595843484,-500.0,0.00016973,2]
[342218995,1731595843493,-500.0,0.00016973,2]
[342218997,1731595843502,-500.0,0.00016973,2]
[342218998,1731595843511,-412.2622093,0.00016973,2]
[342218999,1731595843520,-500.0,0.00016973,2]
[342219000,1731595843530,-500.0,0.00016973,2]
[342219001,1731595843539,-500.0,0.00016973,2]
[342219002,1731595843549,-177.34916481,0.00016973,2]
[342219003,1731595843558,-500.0,0.00016973,2]
[342219004,1731595843567,-500.0,0.00016973,2]
[342219005,1731595843581,-500.0,0.00016973,2]
[342219006,1731595843590,-500.0,0.00016973,2]
[342219007,1731595843599,-553.75162997,0.00016973,2]
[342219008,1731595843609,-500.0,0.00016973,2]
[342219009,1731595843618,-500.79404229,0.00016973,2]
[342219010,1731595843627,-500.0,0.00016973,2]
[342219011,1731595843636,-500.0,0.00016973,2]
[342219012,1731595843645,-500.0,0.00016973,2]
[342219013,1731595843654,-151.0,0.00016986,2]
[342219014,1731595843665,-500.0,0.00016986,2]
[342219015,1731595843674,-500.0,0.00016986,2]
[342219016,1731595843683,-500.0,0.00016986,2]
[342219017,1731595843693,-788.3,0.00016986,2]
[342219018,1731595843702,-500.0,0.00016986,2]
[342219019,1731595843711,-500.0,0.00016986,2]
[342219020,1731595843721,-500.0,0.00016986,2]
[342219021,1731595843730,-500.0,0.00016986,2]
[342219022,1731595843739,-545.54207214,0.00016986,2]
[342219023,1731595843749,-313.1731217,0.00016986,2]
[342219024,1731595843757,-809.23,0.00016986,2]
[342219025,1731595843767,-500.0,0.00016986,2]
[342219026,1731595843776,-500.0,0.00016986,2]
[342219027,1731595843785,-525.76,0.00016986,2]
[342219028,1731595843795,-333.72071627,0.00016986,2]
[342219029,1731595843804,-581.69,0.00016986,2]
[342219030,1731595843812,-500.0,0.00016986,2]
[342219031,1731595843822,-500.0,0.00016986,2]
[342219032,1731595843835,-500.0,0.00016986,2]
[342219033,1731595843844,-500.0,0.00016986,2]
[342219034,1731595843853,-500.0,0.00016986,2]
[342219035,1731595843862,-500.0,0.00016986,2]
[342219036,1731595843871,-523.3,0.00016986,2]
[342219037,1731595843880,-423.7020729,0.00016986,2]
[342219038,1731595843889,-536.55629307,0.00016986,2]
[342219039,1731595843899,-1000.0,0.00016986,2]
[342219040,1731595843908,-500.0,0.00016986,2]
[342219041,1731595843918,-500.0,0.00016986,2]
[342219042,1731595843930,-515.11027934,0.00016986,2]
[342219043,1731595843941,-500.0,0.00016986,2]
[342219044,1731595843951,-500.0,0.00016986,2]
[342219045,1731595843960,-839.17,0.00016986,2]
[342219046,1731595843970,-968.41,0.00016986,2]
[342219047,1731595843979,-614.57,0.00016986,2]
[342219048,1731595843988,-500.0,0.00016986,2]
[342219049,1731595843997,-541.69,0.00016986,2]
[342219050,1731595844007,-500.0,0.00016986,2]
[342219051,1731595844017,-280.72173261,0.00016986,2]
[342219052,1731595844031,-500.0,0.00016986,2]
[342219053,1731595844040,-500.0,0.00016986,2]
[342219054,1731595844050,-202.89777967,0.00016986,2]
[342219055,1731595844059,-500.0,0.00016986,2]
[342219056,1731595844069,-628.28,0.00016986,2]
[342219057,1731595844082,-622.52,0.00016986,2]
[342219058,1731595844091,-500.0,0.00016986,2]
[342219059,1731595844102,-500.0,0.00016986,2]
[342219060,1731595844112,-500.0,0.00016986,2]
[342219061,1731595844122,-646.04,0.00016986,2]
[342219062,1731595844132,-681.07,0.00016986,2]